fUST/lending_fUST_20250212
["ID","MTS","AMOUNT","RATE_DAILY","PERIOD"]
[352843078,1739362168219,-502.62631412,0.00010961,2]
[352843079,1739362168239,-188.20949913,0.00010961,2]
[352843080,1739362168264,-500.0,0.00010961,2]
[352843081,1739362168285,-500.0,0.00010961,2]
[352843082,1739362168306,-500.67774487,0.00010961,2]
[352843083,1739362168326,-500.0,0.00010961,2]
[352843084,1739362168349,-500.0,0.00010961,2]
[352843085,1739362168371,-500.0,0.00010961,2]
[352843086,1739362168391,-500.0,0.00010961,2]
[352843087,1739362168412,-500.0,0.00010961,2]
[352843088,1739362168433,-500.0,0.00010961,2]
[352843089,1739362168454,-500.0,0.00010961,2]
[352843090,1739362168476,-500.0,0.00010961,2]
[352843091,1739362168497,-500.0,0.00010961,2]
[352843092,1739362168518,-500.0,0.00010961,2]
[352843093,1739362168539,-500.0,0.00010961,2]
[352843094,1739362168559,-500.0,0.00010961,2]
[352843095,1739362168581,-500.0,0.00010961,2]
[352843096,1739362168604,-500.0,0.00010961,2]
[352843097,1739362168625,-500.0,0.00010961,2]
[352843098,1739362168646,-209.02848209,0.00010961,2]
[352843099,1739362204837,437.57,8.214e-05,2]
[352843120,1739362235131,-500.0,0.00010959,2]
[352843121,1739362235141,-500.0,0.00010959,2]
[352843122,1739362235152,-552.74,0.00010959,2]
[352843123,1739362235162,-500.0,0.00010959,2]
[352843124,1739362235172,-500.0,0.00010959,2]
[352843125,1739362235181,-500.0,0.0001096,2]
[352843126,1739362235192,-500.0,0.0001096,2]
[352843127,1739362235204,-300.0,0.0001096,2]
[352843128,1739362235214,-500.0,0.0001096,2]
[352843129,1739362235223,-500.0,0.0001096,2]
[352843131,1739362235233,-290.97151791,0.00010961,2]
[352843132,1739362235245,-500.0,0.00010961,2]
[352843133,1739362235254,-500.0,0.00010961,2]
[352843134,1739362235264,-500.0,0.00010961,2]
[352843135,1739362235274,-500.0,0.00010961,2]
[352843136,1739362235284,-202.84905446,0.00010961,2]
[352843137,1739362235294,-500.0,0.00010961,2]
[352843138,1739362235305,-500.0,0.00010961,2]
[352843139,1739362235315,-500.0,0.00010961,2]
[352843140,1739362235324,-500.0,0.00010961,2]
[352843141,1739362235334,-500.0,0.00010961,2]
[352843142,1739362235343,-500.0,0.00010961,2]
[352843143,1739362235352,-500.0,0.00010961,2]
[352843144,1739362235362,-500.0,0.00010961,2]
[352843145,1739362235371,-500.0,0.00010961,2]
[352843146,1739362235381,-500.0,0.00010961,2]
[352843148,1739362235390,-500.0,0.00010961,2]
[352843149,1739362235405,-292.16768748,0.00010961,2]
[352843150,1739362235415,-500.0,0.00010961,2]
[352843151,1739362235424,-500.0,0.00010961,2]
[352843152,1739362235434,-500.0,0.00010961,2]
[352843153,1739362235443,-500.0,0.00010961,2]
[352843154,1739362235452,-500.0,0.00010961,2]
[352843155,1739362235462,-500.0,0.00010961,2]
[352843156,1739362235471,-500.0,0.00010961,2]
[352843157,1739362235481,-500.0,0.00010961,2]
[352843158,1739362235491,-500.0,0.00010961,2]
[352843159,1739362235501,-500.0,0.00010961,2]
[352843160,1739362235511,-500.0,0.00010961,2]
[352843161,1739362235520,-494.95366369,0.00010962,2]
[352843162,1739362235530,-500.0,0.00010962,2]
[352843163,1739362235539,-498.68632513,0.00010962,2]
[352843164,1739362235549,-187.07472737,0.00010998,2]
[352843165,1739362235558,-7438.69753278,0.00011086,2]
[352843166,1739362235568,-500.0,0.00011096,2]
[352843167,1739362235578,-500.0,0.00011096,2]
[352843168,1739362235587,-500.0,0.00011096,2]
[352843169,1739362235597,-500.0,0.00011096,2]
[352843170,1739362235607,-266.7,0.00011096,2]
[352843171,1739362235616,-500.0,0.00011096,2]
[352843172,1739362235626,-500.0,0.00011096,2]
[352843173,1739362235635,-500.0,0.00011096,2]
[352843174,1739362235644,-500.0,0.00011096,2]
[352843175,1739362235654,-500.0,0.00011096,2]
[352843176,1739362235663,-500.0,0.00011096,2]
[352843177,1739362235673,-500.0,0.00011096,2]
[352843178,1739362235682,-500.0,0.00011096,2]
[352843179,1739362235693,-500.0,0.00011096,2]
[352843180,1739362235703,-500.0,0.00011097,2]
[352843181,1739362235713,-500.0,0.00011097,2]
[352843182,1739362235722,-500.0,0.00011097,2]
[352843183,1739362235731,-238.1,0.00011097,2]
[352843184,1739362235741,-500.0,0.00011097,2]
[352843185,1739362235751,-500.0,0.00011097,2]
[352843186,1739362235762,-500.0,0.00011097,2]
[352843187,1739362235772,-500.0,0.00011097,2]
[352843188,1739362235782,-500.0,0.00011097,2]
[352843189,1739362235792,-500.0,0.00011097,2]
[352843190,1739362235802,-500.0,0.00011097,2]
[352843191,1739362235812,-679.15,0.00011097,2]
[352843192,1739362235822,-500.0,0.00011097,2]
[352843193,1739362235833,-500.0,0.00011097,2]
[352843194,1739362235842,-500.0,0.00011097,2]
[352843195,1739362235852,-2429.04,0.00011097,2]
[352843196,1739362235862,-500.0,0.00011097,2]
[352843197,1739362235873,-500.0,0.00011097,2]
[352843198,1739362235882,-500.0,0.00011097,2]
[352843199,1739362235892,-500.0,0.00011097,2]
[352843200,1739362235904,-500.0,0.00011097,2]
[352843201,1739362235913,-500.0,0.00011097,2]
[352843202,1739362235923,-500.0,0.00011097,2]
[352843203,1739362235934,-500.0,0.00011097,2]
[352843204,1739362235945,-500.0,0.00011097,2]
[352843205,1739362235955,-276.4194998,0.00011097,2]
[352843206,1739362235965,-500.0,0.00011097,2]
[352843207,1739362235975,-1039.45,0.00011097,2]
[352843208,1739362235985,-500.0,0.00011097,2]
[352843209,1739362235995,-500.0,0.00011097,2]
[352843210,1739362236005,-500.0,0.00011097,2]
[352843211,1739362236015,-500.0,0.00011098,2]
[352843212,1739362236025,-362.35952819,0.00011098,2]
[352843213,1739362236036,-500.0,0.00011098,2]
[352843214,1739362236045,-596.26,0.00011098,2]
[352843215,1739362236056,-500.0,0.00011098,2]
[352843216,1739362236066,-562.25315162,0.00011098,2]
[352843217,1739362236075,-500.0,0.00011098,2]
[352843218,1739362236085,-500.0,0.00011098,2]
[352843219,1739362236095,-500.0,0.00011098,2]
[352843220,1739362236105,-500.0,0.00011098,2]
[352843221,1739362236116,-500.0,0.00011233,2]
[352843222,1739362236127,-500.0,0.00011233,2]
[352843223,1739362236136,-500.0,0.00011233,2]
[352843224,1739362236147,-500.0,0.00011233,2]
[352843225,1739362236156,-500.0,0.00011233,2]
[352843226,1739362236165,-500.0,0.00011233,2]
[352843227,1739362236175,-500.0,0.00011233,2]
[352843228,1739362236184,-500.0,0.00011233,2]
[352843229,1739362236196,-500.0,0.00011233,2]
[352843230,1739362236207,-500.0,0.00011233,2]
[352843231,1739362236216,-500.0,0.00011233,2]
[352843232,1739362236226,-500.0,0.00011233,2]
[352843233,1739362236237,-577.31,0.00011233,2]
[352843234,1739362236247,-500.0,0.00011234,2]
[352843235,1739362236258,-500.0,0.00011234,2]
[352843236,1739362236267,-500.0,0.00011234,2]
[352843237,1739362236280,-500.0,0.00011234,2]
[352843238,1739362236290,-500.0,0.00011234,2]
[352843239,1739362236300,-500.0,0.00011234,2]
[352843240,1739362236463,-500.0,0.00011234,2]
[352843241,1739362236473,-679.15,0.00011234,2]
[352843242,1739362236483,-500.0,0.00011234,2]
[352843243,1739362236493,-2429.04,0.00011234,2]
[352843244,1739362236503,-500.0,0.00011234,2]
[352843245,1739362236513,-500.0,0.00011234,2]
[352843246,1739362236523,-500.0,0.00011234,2]
[352843247,1739362236537,-500.0,0.00011234,2]
[352843248,1739362236547,-500.0,0.00011234,2]
[352843249,1739362236558,-500.0,0.00011234,2]
[352843250,1739362236568,-1039.45,0.00011234,2]
[352843251,1739362236578,-500.0,0.00011234,2]
[352843252,1739362236588,-500.0,0.00011234,2]
[352843253,1739362236597,-500.0,0.00011234,2]
[352843254,1739362236608,-500.0,0.00011235,2]
[352843255,1739362236618,-500.0,0.00011235,2]
[352843256,1739362236628,-1755.07361715,0.00011325,2]
[352843257,1739362236637,-500.0,0.0001137,2]
[352843258,1739362236646,-500.0,0.0001137,2]
[352843259,1739362236656,-500.0,0.0001137,2]
[352843260,1739362236665,-500.0,0.0001137,2]
[352843261,1739362236675,-500.0,0.0001137,2]
[352843262,1739362236685,-500.0,0.0001137,2]
[352843263,1739362236695,-500.0,0.0001137,2]
[352843264,1739362236717,-500.0,0.0001137,2]
[352843265,1739362236729,-500.0,0.0001137,2]
[352843266,1739362236739,-203.34,0.0001137,2]
[352843267,1739362236749,-500.0,0.0001137,2]
[352843268,1739362236759,-500.0,0.0001137,2]
[352843269,1739362236769,-500.0,0.00011371,2]
[352843270,1739362236780,-607.42,0.00011371,2]
[352843271,1739362236790,-500.0,0.00011371,2]
[352843272,1739362236802,-500.0,0.00011371,2]
[352843273,1739362236812,-500.0,0.00011371,2]
[352843274,1739362236823,-500.0,0.00011371,2]
[352843275,1739362236833,-500.0,0.00011371,2]
[352843276,1739362236846,-679.15,0.00011371,2]
[352843277,1739362236856,-500.0,0.00011371,2]
[352843278,1739362236866,-2429.04,0.00011371,2]
[352843279,1739362236876,-500.0,0.00011371,2]
[352843280,1739362236887,-500.0,0.00011371,2]
[352843281,1739362236897,-500.0,0.00011371,2]
[352843282,1739362236907,-500.0,0.00011371,2]
[352843283,1739362236917,-500.0,0.00011371,2]
[352843284,1739362236927,-1039.45,0.00011371,2]
[352843285,1739362236938,-500.0,0.00011371,2]
[352843286,1739362236948,-500.0,0.00011371,2]
[352843287,1739362236959,-500.0,0.00011372,2]
[352843288,1739362236969,-500.0,0.00011372,2]
[352843289,1739362236980,-500.0,0.00011507,2]
[352843290,1739362236990,-500.0,0.00011507,2]
[352843291,1739362237000,-500.0,0.00011507,2]
[352843292,1739362237011,-533.85,0.00011507,2]
[352843293,1739362237021,-500.0,0.00011507,2]
[352843294,1739362237030,-500.0,0.00011507,2]
[352843295,1739362237040,-500.0,0.00011507,2]
[352843296,1739362237050,-500.0,0.00011507,2]
[352843297,1739362237060,-500.0,0.00011507,2]
[352843298,1739362237070,-500.0,0.00011507,2]
[352843299,1739362237080,-500.0,0.00011508,2]
[352843300,1739362237089,-500.0,0.00011508,2]
[352843301,1739362237099,-500.0,0.00011508,2]
[352843302,1739362237108,-500.0,0.00011508,2]
[352843303,1739362237118,-500.0,0.00011508,2]
[352843304,1739362237128,-500.0,0.00011508,2]
[352843305,1739362237137,-679.15,0.00011508,2]
[352843306,1739362237147,-500.0,0.00011508,2]
[352843307,1739362237160,-1494.7880793,0.00011508,2]
[352843308,1739362237181,-654.86091982,0.00011508,2]
[352843309,1739362237194,-279.39100088,0.00011508,2]
[352843310,1739362237206,-500.0,0.00011508,2]
[352843311,1739362237215,-500.0,0.00011508,2]
[352843312,1739362237224,-500.0,0.00011508,2]
[352843313,1739362237234,-500.0,0.00011508,2]
[352843314,1739362237245,-500.0,0.00011508,2]
[352843316,1739362237255,-1039.45,0.00011508,2]
[352843317,1739362237266,-500.0,0.00011508,2]
[352843318,1739362237277,-500.0,0.00011508,2]
[352843320,1739362237288,-500.0,0.00011509,2]
[352843321,1739362237297,-500.0,0.00011509,2]
[352843322,1739362237306,-185.73208976,0.00011561,2]
[352843323,1739362237317,-411.6878396,0.00011603,2]
[352843324,1739362237327,-500.0,0.00011644,2]
[352843325,1739362237337,-500.0,0.00011644,2]
[352843326,1739362237346,-500.0,0.00011644,2]
[352843327,1739362237355,-500.0,0.00011644,2]
[352843328,1739362237365,-500.0,0.00011644,2]
[352843329,1739362237375,-500.0,0.00011644,2]
[352843331,1739362237385,-500.0,0.00011644,2]
[352843333,1739362237394,-500.0,0.00011644,2]
[352843335,1739362237404,-500.0,0.00011644,2]
[352843337,1739362237414,-362.95048929,0.00011645,2]
[352843339,1739362237423,-500.0,0.00011645,2]
[352843341,1739362237433,-500.0,0.00011645,2]
[352843344,1739362237442,-255.11843858,0.00011645,2]
[352843347,1739362237452,-500.0,0.00011645,2]
[352843350,1739362237462,-500.0,0.00011645,2]
[352843353,1739362237472,-446.63028411,0.00011645,2]
[352843356,1739362237484,-232.51971589,0.00011645,2]
[352843359,1739362237493,-608.3,0.00011645,2]
[352843362,1739362237503,-895.32733536,0.00011645,2]
[352843408,1739362237959,-1533.71266464,0.00011645,2]
[352843411,1739362237969,-500.0,0.00011645,2]
[352843415,1739362237979,-500.0,0.00011645,2]
[352843418,1739362237988,-295.01765703,0.00011645,2]
[352843420,1739362237997,-500.0,0.00011645,2]
[352843422,1739362238007,-500.0,0.00011645,2]
[352843424,1739362238016,-806.92231059,0.00011645,2]
[352843429,1739362238063,-31.74163986,0.00011645,2]
[352843431,1739362238075,-200.78604955,0.00011645,2]
[352843434,1739362238084,-500.0,0.00011645,2]
[352843436,1739362238094,-500.0,0.00011645,2]
[352843437,1739362238103,-500.0,0.00011646,2]
[352843439,1739362238113,-603.82,0.00011646,2]
[352843441,1739362238122,-500.0,0.00011781,2]
[352843443,1739362238132,-500.0,0.00011781,2]
[352843445,1739362238142,-500.0,0.00011781,2]
[352843447,1739362238151,-500.0,0.00011781,2]
[352843449,1739362238161,-500.0,0.00011781,2]
[352843451,1739362238170,-500.0,0.00011781,2]
[352843453,1739362238179,-500.0,0.00011781,2]
[352843455,1739362238188,-500.0,0.00011781,2]
[352843458,1739362238201,-500.0,0.00011781,2]
[352843459,1739362238210,-500.0,0.00011782,2]
[352843461,1739362238220,-500.0,0.00011782,2]
[352843463,1739362238229,-500.0,0.00011782,2]
[352843465,1739362238241,-679.15,0.00011782,2]
[352843467,1739362238251,-2429.04,0.00011782,2]
[352843469,1739362238260,-625.08717908,0.00011782,2]
[352843471,1739362238269,-500.0,0.00011782,2]
[352843473,1739362238280,-500.0,0.00011782,2]
[352843475,1739362238289,-500.0,0.00011782,2]
[352843477,1739362238299,-1039.45,0.00011782,2]
[352843479,1739362238308,-500.0,0.00011782,2]
[352843481,1739362238317,-500.0,0.00011782,2]
[352843483,1739362238326,-500.0,0.00011783,2]
[352843485,1739362238335,-500.0,0.00011918,2]
[352843487,1739362238344,-500.0,0.00011918,2]
[352843489,1739362238353,-500.0,0.00011918,2]
[352843491,1739362238362,-500.0,0.00011918,2]
[352843493,1739362238371,-500.0,0.00011918,2]
[352843495,1739362238381,-500.0,0.00011918,2]
[352843496,1739362238390,-500.0,0.00011918,2]
[352843498,1739362238399,-500.0,0.00011918,2]
[352843500,1739362238408,-500.0,0.00011918,2]
[352843502,1739362238417,-345.38312454,0.00011919,2]
[352843504,1739362238427,-500.0,0.00011919,2]
[352843506,1739362238436,-500.0,0.00011919,2]
[352843508,1739362238445,-679.15,0.00011919,2]
[352843510,1739362238454,-2429.04,0.00011919,2]
[352843512,1739362238463,-500.0,0.00011919,2]
[352843514,1739362238473,-500.0,0.00011919,2]
[352843516,1739362238482,-500.0,0.00011919,2]
[352843518,1739362238491,-1039.45,0.00011919,2]
[352843520,1739362238500,-500.0,0.00011919,2]
[352843522,1739362238510,-500.0,0.00011919,2]
[352843524,1739362238519,-500.0,0.0001192,2]
[352843526,1739362238529,-420.0,0.00012044,2]
[352843528,1739362238538,-500.0,0.00012055,2]
[352843530,1739362238547,-500.0,0.00012055,2]
[352843532,1739362238557,-500.0,0.00012055,2]
[352843534,1739362238566,-500.0,0.00012055,2]
[352843536,1739362238575,-500.0,0.00012055,2]
[352843538,1739362238584,-500.0,0.00012055,2]
[352843540,1739362238594,-500.0,0.00012055,2]
[352843542,1739362238603,-500.0,0.00012055,2]
[352843544,1739362238613,-500.0,0.00012055,2]
[352843546,1739362238622,-258.44,0.00012056,2]
[352843548,1739362238631,-500.0,0.00012056,2]
[352843550,1739362238641,-679.15,0.00012056,2]
[352843552,1739362238650,-2429.04,0.00012056,2]
[352843554,1739362238659,-354.7210316,0.00012056,2]
[352843556,1739362238669,-408.03129725,0.00012056,2]
[352843558,1739362238678,-500.0,0.00012056,2]
[352843560,1739362238688,-1039.45,0.00012056,2]
[352843562,1739362238697,-500.0,0.00012056,2]
[352843564,1739362238706,-500.0,0.00012056,2]
[352843566,1739362238716,-500.0,0.00012192,2]
[352843568,1739362238725,-500.0,0.00012192,2]
[352843570,1739362238734,-500.0,0.00012192,2]
[352843572,1739362238743,-500.0,0.00012192,2]
[352843574,1739362238753,-500.0,0.00012192,2]
[352843575,1739362238762,-500.0,0.00012192,2]
[352843576,1739362238772,-609.09515762,0.00012192,2]
[352843577,1739362238781,-500.0,0.00012192,2]
[352843578,1739362238790,-500.0,0.00012193,2]
[352843579,1739362238799,-679.15,0.00012193,2]
[352843580,1739362238808,-2429.04,0.00012193,2]
[352843581,1739362238817,-500.0,0.00012193,2]
[352843582,1739362238826,-1039.45,0.00012193,2]
[352843583,1739362238836,-500.0,0.00012193,2]
[352843584,1739362238845,-500.0,0.00012193,2]
[352843585,1739362238855,-500.0,0.00012329,2]
[352843586,1739362238864,-567.46,0.00012329,2]
[352843587,1739362238873,-500.0,0.00012329,2]
[352843588,1739362238883,-500.0,0.00012329,2]
[352843589,1739362238892,-520.44,0.00012329,2]
[352843590,1739362238901,-500.0,0.00012329,2]
[352843591,1739362238910,-500.0,0.00012329,2]
[352843592,1739362238918,-500.0,0.0001233,2]
[352843593,1739362238928,-679.15,0.0001233,2]
[352843594,1739362238938,-2429.04,0.0001233,2]
[352843595,1739362238947,-500.0,0.0001233,2]
[352843596,1739362238956,-1039.45,0.0001233,2]
[352843597,1739362238966,-500.0,0.0001233,2]
[352843598,1739362238978,-500.0,0.0001233,2]
[352843599,1739362238987,-500.0,0.00012464,2]
[352843600,1739362238996,-500.0,0.00012466,2]
[352843601,1739362239006,-500.0,0.00012466,2]
[352843602,1739362239015,-500.0,0.00012466,2]
[352843603,1739362239025,-500.0,0.00012466,2]
[352843604,1739362239035,-500.0,0.00012466,2]
[352843605,1739362239044,-500.0,0.00012467,2]
[352843606,1739362239054,-679.15,0.00012467,2]
[352843607,1739362239063,-2429.04,0.00012467,2]
[352843608,1739362239072,-1039.45,0.00012467,2]
[352843609,1739362239081,-500.0,0.00012467,2]
[352843610,1739362239091,-525.3,0.00012467,2]
[352843611,1739362239100,-500.0,0.00012603,2]
[352843612,1739362239109,-500.0,0.00012603,2]
[352843613,1739362239119,-500.0,0.00012603,2]
[352843614,1739362239128,-500.0,0.00012603,2]
[352843615,1739362239138,-500.0,0.00012603,2]
[352843616,1739362239147,-500.0,0.00012604,2]
[352843617,1739362239156,-679.15,0.00012604,2]
[352843618,1739362239166,-2429.04,0.00012604,2]
[352843619,1739362239176,-1039.45,0.00012604,2]
[352843620,1739362239185,-500.0,0.00012604,2]
[352843621,1739362239195,-500.0,0.0001274,2]
[352843622,1739362239208,-500.0,0.0001274,2]
[352843623,1739362239217,-500.0,0.0001274,2]
[352843625,1739362239226,-500.0,0.0001274,2]
[352843626,1739362239235,-393.97,0.0001274,2]
[352843627,1739362239247,-500.0,0.00012741,2]
[352843628,1739362239257,-679.15,0.00012741,2]
[352843629,1739362239266,-2429.04,0.00012741,2]
[352843630,1739362239276,-1039.45,0.00012741,2]
[352843631,1739362239287,-500.0,0.00012741,2]
[352843632,1739362239296,-500.0,0.00012877,2]
[352843633,1739362239305,-500.0,0.00012877,2]
[352843634,1739362239314,-500.0,0.00012877,2]
[352843635,1739362239324,-500.0,0.00012877,2]
[352843636,1739362239333,-500.0,0.00012878,2]
[352843637,1739362239342,-679.15,0.00012878,2]
[352843638,1739362239352,-2429.04,0.00012878,2]
[352843639,1739362239361,-1039.45,0.00012878,2]
[352843640,1739362239370,-500.0,0.00012878,2]
[352843641,1739362239379,-500.0,0.00013014,2]
[352843642,1739362239388,-500.0,0.00013014,2]
[352843643,1739362239398,-500.0,0.00013014,2]
[352843644,1739362239407,-500.0,0.00013014,2]
[352843645,1739362239416,-270.12,0.00013015,2]
[352843646,1739362239426,-679.15,0.00013015,2]
[352843647,1739362239436,-2429.04,0.00013015,2]
[352843648,1739362239445,-1039.45,0.00013015,2]
[352843649,1739362239454,-244.55,0.00013015,2]
[352843650,1739362239463,-2154.52708726,0.00013053,2]
[352843651,1739362239473,-500.0,0.0001308,2]
[352843652,1739362239482,-165.87691703,0.00013151,2]
[352843653,1739362239491,-500.0,0.00013151,2]
[352843654,1739362239500,-500.0,0.00013151,2]
[352843655,1739362239509,-500.0,0.00013151,2]
[352843656,1739362239518,-679.15,0.00013152,2]
[352843657,1739362239528,-2429.04,0.00013152,2]
[352843658,1739362239537,-1039.45,0.00013152,2]
[352843659,1739362239547,-500.0,0.00013288,2]
[352843660,1739362239556,-466.54,0.00013288,2]
[352843661,1739362239565,-500.0,0.00013288,2]
[352843662,1739362239574,-679.15,0.00013289,2]
[352843663,1739362239585,-2429.04,0.00013289,2]
[352843664,1739362239594,-1039.45,0.00013289,2]
[352843665,1739362239604,-500.0,0.00013425,2]
[352843666,1739362239613,-500.0,0.00013425,2]
[352843667,1739362239624,-679.15,0.00013426,2]
[352843668,1739362239634,-2429.04,0.00013426,2]
[352843670,1739362239643,-1039.45,0.00013426,2]
[352843672,1739362239653,-500.0,0.00013562,2]
[352843673,1739362239662,-305.7,0.00013562,2]
[352843688,1739362239787,-679.15,0.00013563,2]
[352843689,1739362239797,-2429.04,0.00013563,2]
[352843690,1739362239806,-1039.45,0.00013563,2]
[352843691,1739362239816,-628.278329,0.00013699,2]
[352843692,1739362239824,-785.371285,0.00013699,2]
[352843693,1739362239834,-500.0,0.00013699,2]
[352843694,1739362239843,-500.0,0.00013699,2]
[352843695,1739362239852,-500.0,0.00013699,2]
[352843696,1739362239861,-500.0,0.00013699,2]
[352843697,1739362239871,-576.57987407,0.00013699,2]
[352843698,1739362239880,-500.0,0.00013699,2]
[352843699,1739362239889,-500.0,0.00013699,2]
[352843700,1739362239898,-500.0,0.00013699,2]
[352843701,1739362239907,-500.0,0.00013699,2]
[352843702,1739362239916,-500.0,0.00013699,2]
[352843703,1739362239925,-500.0,0.00013699,2]
[352843704,1739362239935,-500.0,0.00013699,2]
[352843705,1739362239944,-500.0,0.00013699,2]
[352843706,1739362239954,-500.0,0.00013699,2]
[352843707,1739362239963,-679.15,0.000137,2]
[352843708,1739362239973,-2429.04,0.000137,2]
[352843709,1739362239983,-1039.45,0.000137,2]
[352843710,1739362239991,-500.0,0.00013836,2]
[352843711,1739362240001,-679.15,0.00013837,2]
[352843713,1739362240010,-2429.04,0.00013837,2]
[352843715,1739362240019,-1039.45,0.00013837,2]
[352843717,1739362240028,-500.0,0.00013973,2]
[352843719,1739362240039,-679.15,0.00013974,2]
[352843720,1739362240048,-2429.04,0.00013974,2]
[352843721,1739362240057,-1039.45,0.00013974,2]
[352843722,1739362240066,-286.949,0.00013987,2]
[352843723,1739362240075,-196.28,0.0001411,2]
[352843724,1739362240084,-679.17,0.00014111,2]
[352843725,1739362240094,-2429.13900224,0.00014111,2]
[352843726,1739362240103,-1039.49,0.00014111,2]
[352843727,1739362240112,-151.0,0.000142,2]
[352843728,1739362240121,-500.0,0.0001445,2]
[352843729,1739362240131,-151.0,0.000146,2]
[352843730,1739362240140,-151.0,0.000146,2]
[352843731,1739362240149,-343.217,0.00014817,2]
[352843732,1739362240158,-169.26,0.00014843,2]
[352843733,1739362240167,-396.0,0.00014926,2]
[352843734,1739362240178,-500.0,0.00014973,2]
[352843735,1739362240188,-500.0,0.00014973,2]
[352843736,1739362240201,-183.62653941,0.00014973,2]
[352843737,1739362240213,-500.0,0.00014999,2]
[352843738,1739362240223,-211.14516016,0.00014999,2]
[352843739,1739362240232,-416.64834809,0.00014999,2]
[352843740,1739362240243,-537394.20311473,0.00015,2]
[352843741,1739362240299,-442.54328143,0.00015,2]
[352843742,1739362240392,-343.218,0.0001488,2]
[352843743,1739362240402,-577.55041823,0.00015,2]
[352843808,1739362243036,-500.0,0.00010959,2]
[352843810,1739362243046,-500.0,0.00011096,2]
[352843812,1739362243055,-3636.5310345,0.00015,2]
[352843814,1739362243066,-1382.01163,0.00015,2]
[352843816,1739362243077,-2500.0,0.00015,2]
[352843868,1739362245910,-500.0,0.00010959,2]
[352843869,1739362245920,-593.76,0.00011096,2]
[352843870,1739362245932,-875.85665068,0.00015,2]
[352843871,1739362245944,-4906.86377783,0.00015,2]
[352843872,1739362245955,-3006.48354365,0.00015,2]
[352843873,1739362245967,-1291.49292525,0.00015,2]
[352843877,1739362554649,1000.0,0.00016,120]
[352843878,1739362726513,1800.0,8.214e-05,2]
[352843881,1739363238167,-1548.7753276,9.956e-05,2]
[352843882,1739363238189,-542.48173149,0.00010585,2]
[352843883,1739363238211,-400.0,0.00010685,2]
[352843884,1739363238235,-4999.34491921,0.0001095,2]
[352843885,1739363238266,-3.85878751,0.00010952,2]
[352843886,1739363240140,-147.14121249,0.00010952,2]
[352843887,1739363240164,-300.0,0.00010957,2]
[352843888,1739363240186,-771.2096871,0.00010958,2]
[352843889,1739363240210,-500.0,0.00010958,2]
[352843890,1739363240237,-500.0,0.00010958,2]
[352843891,1739363240260,-500.0,0.00010958,2]
[352843892,1739363240284,-500.0,0.00010958,2]
[352843893,1739363240305,-500.0,0.00010958,2]
[352843894,1739363240328,-512.43,0.00010958,2]
[352843895,1739363240350,-500.0,0.00010958,2]
[352843896,1739363240373,-500.0,0.00010958,2]
[352843897,1739363240395,-500.0,0.00010958,2]